Cogmind - Beta 16 @@@ ROGUE MODE // 2026.01.17 @ 02:27:35 Player: Legato Result: Destroyed by G-67 Veteran with Field Laser Performance ------------- Evolutions (6) 3000 Regions Visited (14) 2800 Robots Destroyed (97) 485 Value Destroyed (3120) 3120 Prototype IDs (28) 560 Alien Tech Used (0) 0 Bonus (1355) 1355 TOTAL SCORE: 11320 Bonus ------- High Alert Combat Kills 78 Follower Combat Kills 714 Aligned with FarCom 300 Met Imprinter 300 Friendly Fire -37 Cogmind --------- Core Integrity 0/1150 Matter 300/300 Energy 99/100 System Corruption 0% Temperature Cool (9) Movement Core (50) Location -4/Extension Parts ------- > --- POWER (2) -------- (None) > --- PROPULSION (5) --- (None) > --- UTILITY (9) ------ (None) > --- WEAPON (3) ------- (None) > --- INVENTORY (5) ---- Improved Treads Peak State ------------ > --- POWER ------------ Light Antimatter Reactor Light Antimatter Reactor > --- PROPULSION ------- Armored Medium Treads Armored Medium Treads Armored Medium Treads Armored Medium Treads Armored Medium Treads > --- UTILITY ---------- Advanced Heat Sink Advanced Heat Sink Advanced Visual Processing Unit Improved Melee Analysis Suite Improved Melee Analysis Suite Improved Melee Analysis Suite Improved Core Shielding Advanced System Shield Long-range Tractor Beam > --- WEAPON ----------- Heavy Beamcaster Heavy Flak Cannon Enhanced Gauss Cannon > --- INVENTORY -------- Advanced Medium Treads Advanced Power Amplifier Improved Power Shielding Remote Datajack Ripper [Rating: 105] Favorites ----------- Power Light Ion Engine Engine Light Ion Engine Power Core Improved Fusion Compressor Reactor Light Antimatter Reactor Propulsion Armored Medium Treads Treads Armored Medium Treads Leg Improved Aluminum Leg Wheel Armored Huge Wheel Hover Unit Antigrav System Flight Unit VTOL Module Utility Improved Melee Analysis Suite Device Seismic Detector Storage Small Storage Unit Processor Improved Melee Analysis Suite Hackware Advanced System Shield Protection Propulsion Shielding Weapon Rocket Launcher Energy Gun Heavy Beamcaster Energy Cannon Beam Cannon Ballistic Gun Light Assault Rifle Ballistic Cannon Heavy Flak Cannon Launcher Rocket Launcher Special Weapon Remote Datajack Slashing Weapon Ripper Build | -11 -10 -10 -10 -9 -8 -7 -7 -7 -7 -6 -6 -5 -4 -4 ------- Run | Yrd Mat Min Exi Min Mat Fac Low Low Zio Pro Fac Fac Fac Ext Slots Evolved 12 | . . . . . 4 2 . . . . 2 2 2 . Power 1 | . . . . . . . . . . . . 1 . . Propulsion 3 | . . . . . 2 . . . . . . 1 . . Utility 7 | . . . . . 2 1 . . . . 2 . 2 . Weapon 1 | . . . . . . 1 . . . . . . . . Parts Attached 131 | 9 5 9 1 1 28 5 3 7 . 8 12 7 11 25 Power 15 | 1 3 2 . 1 2 . . . . . 1 . 1 4 Engine 9 | 1 2 2 . 1 2 . . . . . 1 . . . Core 3 | . 1 . . . . . . . . . . . 1 1 Reactor 3 | . . . . . . . . . . . . . . 3 Propulsion 30 | 3 1 . . . 10 . . 2 . 2 1 3 5 3 Treads 10 | 1 1 . . . 2 . . . . . . . 5 1 Leg 5 | . . . . . 4 . . . . . . . . 1 Wheel 8 | 2 . . . . 4 . . 1 . . . . . 1 Hover 4 | . . . . . . . . . . . 1 3 . . Flight 3 | . . . . . . . . 1 . 2 . . . . Utility 51 | 2 . 2 1 . 12 2 3 3 . 3 5 2 5 11 Device 20 | 1 . . . . 4 . 1 2 . 1 1 2 . 8 Storage 3 | 1 . . 1 . . 1 . . . . . . . . Processor 7 | . . . . . . . . . . . 1 . 4 2 Hackware 2 | . . . . . . . . . . . 1 . 1 . Protection 19 | . . 2 . . 8 1 2 1 . 2 2 . . 1 Artifact . | . . . . . . . . . . . . . . . Weapon 35 | 3 1 5 . . 4 3 . 2 . 3 5 2 . 7 Energy Gun 6 | 1 . . . . 1 . . . . . . . . 4 Energy Cannon 1 | . . 1 . . . . . . . . . . . . Ballistic Gun 11 | 2 1 1 . . 3 2 . 1 . 1 . . . . Ballistic Cannon 4 | . . 1 . . . . . . . . 1 1 . 1 Launcher 9 | . . 2 . . . 1 . . . 2 4 . . . Special Weapon 2 | . . . . . . . . 1 . . . 1 . . Impact Weapon . | . . . . . . . . . . . . . . . Slashing Weapon 2 | . . . . . . . . . . . . . . 2 Piercing Weapon . | . . . . . . . . . . . . . . . Special Melee Weapon . | . . . . . . . . . . . . . . . Unidentified Prototypes . | . . . . . . . . . . . . . . . Parts Lost 48 | . . 1 . . 9 . 11 1 . 6 2 1 4 13 Power 3 | . . . . . 1 . . . . . . . . 2 Propulsion 13 | . . . . . 5 . 1 . . 1 2 1 . 3 Utility 22 | . . . . . 3 . 8 . . 3 . . 3 5 Weapon 10 | . . 1 . . . . 2 1 . 2 . . 1 3 Highest Loss Streak 8 | . . 1 . . 5 . 8 1 . 3 2 1 3 8 To Critical Strikes . | . . . . . . . . . . . . . . . Average Backups 6 | 5 8 8 7 6 10 13 11 2 4 3 3 4 4 3 Power . | 1 1 . . . 1 2 1 . . 1 . . . . Propulsion 1 | 4 4 3 2 2 . 2 1 . . . . . . . Utility 2 | . 1 2 2 1 3 5 4 . 1 . . . 1 1 Weapon 2 | . . 1 2 2 4 4 3 1 2 1 2 4 1 . Tool/Special . | . . . . . . . . . . . . . . . Unused Backups 22 | . 4 1 1 . 5 . 5 . 4 . . . . 2 Power 4 | . 1 . . . 1 . 1 . . . . . . 1 Propulsion 8 | . 3 . 1 . 2 . 1 . . . . . . 1 Utility 4 | . . 1 . . . . 2 . 1 . . . . . Weapon 6 | . . . . . 2 . 1 . 3 . . . . . Tool/Special . | . . . . . . . . . . . . . . . Average Slot Usage (%) 66 | . 100 97 94 100 85 81 67 16 23 16 21 48 83 65 Engine 5 | . 11 14 14 14 9 7 6 . . . . . . . Treads 8 | . 14 14 14 14 13 . . . . . . . 16 18 Wheel 7 | . 13 14 14 14 11 15 12 3 7 4 . . . . Device 6 | . 14 13 7 . 5 . . 8 15 6 1 5 5 9 Storage 5 | . 14 14 16 18 9 7 6 . . . . . . . Processor 3 | . . . . . . . . . . . 2 5 20 12 Hackware 1 | . . . . . . . . . . . . 5 8 3 Protection 8 | . . . . 10 18 29 22 . . 1 4 11 9 3 Energy Cannon 1 | . . 1 14 5 . . . . . . . . . . Ballistic Gun 6 | . 28 13 . 9 10 12 13 2 . . . . . . Ballistic Cannon 1 | . . . . . . . . . . . . 1 8 5 Launcher 3 | . . 11 14 14 1 7 4 . . . 3 4 2 . Peak Build Rating 105 | 7 9 8 10 10 45 49 40 21 15 23 29 61 95 105 Average Rating 29 | 5 7 7 8 9 24 41 31 11 14 11 12 41 86 68 On Entrance 22 | . 7 7 8 10 10 45 39 2 15 14 5 29 61 79 Avg Prop Armor Cover (%) 19 | 5 8 12 11 9 16 . . 27 27 28 . 11 14 19 Naked Turns 177 | . . . . . . . 57 7 . 3 31 . . 79 Heaviest Build 116 | 12 14 16 35 35 51 116 112 6 3 24 18 19 37 53 Greatest Support 135 | 20 40 10 10 10 60 56 56 28 3 8 12 32 135 135 Greatest Overweight (x) 7 | . 1 1 3 3 3 2 1 1 . 7 4 1 . 3 Average Overweight (x) . | . . . 1 3 . 1 . . . . . . . . Largest Inventory Capacity 25 | 8 8 8 15 15 15 25 25 5 5 5 5 5 5 5 Average Capacity 9 | 7 8 8 9 15 15 24 21 5 5 5 5 5 5 5 Most Carried 18 | 8 8 8 8 9 15 18 17 5 5 5 5 5 5 5 Average Carried 7 | 6 7 8 7 7 11 16 14 4 4 4 3 4 4 3 Final Capacity 25 | 8 8 8 15 15 15 25 5 5 5 5 5 5 5 5 Final Carried 17 | 8 8 8 8 9 15 17 4 4 5 5 3 5 5 1 Class Distribution -------------------- 72% | Mutant 6% | Tank 6% | Scavenger-Mutant 3% | Hacker-Skirmisher 3% | Bomber Dominant Class ---------------- Mutant | -10/Materials Mutant | -10/Mines Mutant | -10/Exiles Mutant | -9/Mines Mutant | -8/Materials Tank | -7/Factory Bomber | -7/Lower Caves Mutant | -7/Lower Caves Mutant | -7/Zion Mutant | -6/Proximity Caves Mutant | -6/Factory Mutant | -5/Factory Hacker-Skirmisher | -4/Factory Mutant | -4/Extension Resources | -11 -10 -10 -10 -9 -8 -7 -7 -7 -7 -6 -6 -5 -4 -4 ----------- Run | Yrd Mat Min Exi Min Mat Fac Low Low Zio Pro Fac Fac Fac Ext Matter Collected 3628 | 311 321 220 . 29 833 55 247 136 94 292 183 164 . 743 Remotely 209 | . . . . . . . . . . . . 164 . 45 Salvage Created 2968 | 123 314 129 . 31 1348 277 18 . . 270 92 102 . 264 Parts 181 | 7 24 14 . 7 75 19 3 . . 15 4 2 . 11 Haulers Intercepted 2 | . . . . . 1 . . . . . . 1 . . Recyclers Shooed 6 | . 2 . . 1 . . . . . . . . . 3 Parts Field Recycled . | . . . . . . . . . . . . . . . Retrieved Matter . | . . . . . . . . . . . . . . . Parts Self-Destructed 14 | . . . . . . . 2 . . 12 . . . . Prevented . | . . . . . . . . . . . . . . . Parts Restored . | . . . . . . . . . . . . . . . Kills | -11 -10 -10 -10 -9 -8 -7 -7 -7 -7 -6 -6 -5 -4 -4 ------- Run | Yrd Mat Min Exi Min Mat Fac Low Low Zio Pro Fac Fac Fac Ext Combat Hostiles Destroyed 75 | . 6 8 . 3 31 5 3 . . 13 2 . . 4 Guns 43 | . 6 2 . . 25 4 . . . 4 . . . 2 Cannons 1 | . . . . . . . . . . . . . . 1 AOE 30 | . . 6 . 3 6 1 3 . . 9 2 . . . Classes Destroyed 14 | 2 4 . . . 6 1 . . . . 1 . . . Worker 1 | . . . . . . . . . . . 1 . . . Builder 3 | . . . . . 2 1 . . . . . . . . Tunneler 5 | 2 . . . 1 1 1 . . . . . . . . Hauler 2 | . . . . . 1 . . . . . . 1 . . Recycler 3 | 1 1 . . . . 1 . . . . . . . . Operator 1 | . 1 . . . . . . . . . . . . . Watcher 7 | . 3 . . . 3 . . . . . . . . 1 Swarmer 29 | . 2 4 . 3 7 1 3 . . 9 . . . . Grunt 34 | . 4 4 . . 14 2 . . . 4 2 . . 4 Brawler 2 | . . . . . 2 . . . . . . . . . Duelist 1 | . . . . . 1 . . . . . . . . . Sentry 6 | . . . . . 5 1 . . . . . . . . Specialist 2 | . . . . . 2 . . . . . . . . . Programmer 1 | . . . . . . 1 . . . . . . . . Best Kill Streak 17 | 2 5 3 . 3 17 6 3 . . 4 3 1 . 2 Combat Bots Only 13 | . 2 3 . 3 13 3 3 . . 4 2 . . 2 Max Kills in Single Turn 3 | 1 1 2 . 2 3 2 2 . . 2 2 1 . 1 Gunslinging . | . . . . . . . . . . . . . . . Exploded 3 | . . 2 . 2 3 1 2 . . 2 1 . . . Melee . | . . . . . . . . . . . . . . . Uniques/NPCs Destroyed . | . . . . . . . . . . . . . . . Combat | -11 -10 -10 -10 -9 -8 -7 -7 -7 -7 -6 -6 -5 -4 -4 -------- Run | Yrd Mat Min Exi Min Mat Fac Low Low Zio Pro Fac Fac Fac Ext Hostile Shots Fired 824 | . 22 20 . 4 117 38 106 11 . 115 85 . 72 234 Missed 276 | . 6 7 . 1 30 10 32 4 . 48 40 . 25 73 Hits 548 | . 16 13 . 3 87 28 74 7 . 67 45 . 47 161 Melee 8 | . . . . . 2 . . 5 . 1 . . . . Projectile 540 | . 16 13 . 3 85 28 74 2 . 66 45 . 47 161 Critical Strikes 23 | . 1 . . . 4 3 2 . . 1 1 . 1 10 Actively Blocked 1 | . . . . . . . . . . . . . . 1 Damage Taken 10061 | . 168 228 . 22 1266 447 1335 78 . 1128 567 209 902 3711 Core 2177 | . 27 29 . . 85 27 273 11 . 350 156 66 19 1134 Absorbed by Shields 42 | . . . . . . . . . . . . . . 42 Redirected to Shielding 500 | . . 3 . . 140 31 144 . . . 50 28 66 38 Ignored by Resistances 25 | . . . . . . . . . . 25 . . . . Regen/Repaired (Parts) 106 | . . . . . 106 . . . . . . . . . Core Remaining (%) 73 | 100 . . . 77 84 . . . . 5 81 93 . . Volleys Fired 191 | 9 33 15 . 8 37 16 12 4 . 17 4 10 1 25 Largest 3 | 2 2 2 . 2 2 3 3 1 . 2 3 1 3 3 Hottest 172 | 60 40 60 . 60 88 81 81 20 . 75 117 51 134 172 Shots Fired 428 | 16 66 26 . 10 143 40 25 4 . 21 6 10 3 58 Gun 319 | 16 66 13 . 6 135 31 16 . . 9 . . . 27 Cannon 40 | . . 2 . 2 . . . . . . 1 3 2 30 Launcher 59 | . . 11 . 2 8 9 9 . . 12 5 2 1 . Special 10 | . . . . . . . . 4 . . . 5 . 1 Kinetic 311 | 15 66 13 . 6 119 31 16 . . 9 1 3 2 30 Thermal 51 | . . 2 . 2 16 . . 4 . . . . . 27 Explosive 59 | . . 11 . 2 8 9 9 . . 12 5 2 1 . Electromagnetic 1 | 1 . . . . . . . . . . . . . . Robot Hit Streak 28 | 5 9 8 . 2 28 11 6 . . 2 3 6 3 7 Robot Miss Streak 10 | 4 5 2 . 3 3 10 3 . . 3 2 2 5 5 Penetration Max 1 | . . . . . . . . . . . . . . 1 Secondary Targets 2 | . 1 . . . 1 . . . . . . . . . Max Gunslinging Chain 1 | . 1 . . . 1 . . . . . . . . . Autonomous 85 | . . . . . 73 12 . . . . . . . . Shots Hit Robots 288 | 10 38 15 . 5 117 23 12 . . 8 3 6 3 48 Core Hits 206 | 5 22 13 . 4 74 14 8 . . 24 7 1 1 33 Critical Kills 6 | 1 . . . . 3 . . . . . . 1 . 1 Critical Parts Destroyed 3 | . . . . . . . . . . . . 1 . 2 Critical Strikes 13 | 1 . . . . 3 . . . . . . 2 . 7 Burn 2 | . . . . . . . . . . . . . . 2 Destroy 9 | 1 . . . . 3 . . . . . . 2 . 3 Sever 2 | . . . . . . . . . . . . . . 2 Melee Attacks 8 | . . . . . . . . . . . . . . 8 Impact . | . . . . . . . . . . . . . . . Slashing 8 | . . . . . . . . . . . . . . 8 Piercing . | . . . . . . . . . . . . . . . Sneak Attacks . | . . . . . . . . . . . . . . . Combat Hostiles . | . . . . . . . . . . . . . . . Follow-up Attacks . | . . . . . . . . . . . . . . . Damage Inflicted 9285 | 128 420 626 . 184 3417 800 571 4 . 1099 419 46 119 1452 Guns 4615 | 128 420 74 . 27 2814 407 176 . . 115 . . . 454 Cannons 808 | . . . . 18 . . . . . . 22 46 25 697 Explosions 3557 | . . 552 . 139 603 393 395 . . 984 397 . 94 . Melee 291 | . . . . . . . . . . . . . . 291 Ramming 14 | . . . . . . . . 4 . . . . . 10 Kinetic 4677 | 113 420 74 . 27 2555 407 176 . . 115 22 46 25 697 Thermal 791 | . . . . 18 319 . . . . . . . . 454 Explosive 3497 | . . 552 . 139 543 393 395 . . 984 397 . 94 . Electromagnetic 15 | 15 . . . . . . . . . . . . . . Impact . | . . . . . . . . . . . . . . . Slashing 291 | . . . . . . . . . . . . . . 291 Piercing . | . . . . . . . . . . . . . . . Highest Corruption 4 | . . . . . 3 4 4 4 4 . . . . . Average Corruption 3 | . . . . . 3 2 4 4 4 . . . . . Corruption Purged . | . . . . . . . . . . . . . . . Corruption Blocked . | . . . . . . . . . . . . . . . Effects 28 | . . . . . 8 1 11 7 1 . . . . . Message Errors 8 | . . . . . 2 . 4 2 . . . . . . Matter Fused 8 | . . . . . 2 1 2 3 . . . . . . Heat Flow Errors 5 | . . . . . 2 . 3 . . . . . . . Energy Discharges 1 | . . . . . . . 1 . . . . . . . Data Loss (minor) 5 | . . . . . 1 . 1 2 1 . . . . . Alerts 1 | . . . . . 1 . . . . . . . . . Overload Shots . | . . . . . . . . . . . . . . . Overflow Damage 222 | . . 48 . 30 6 8 . . . 74 . 16 17 23 Projectiles . | . . . . . . . . . . . . . . . Explosions 199 | . . 48 . 30 6 8 . . . 74 . 16 17 . Melee 23 | . . . . . . . . . . . . . . 23 Knockbacks 13 | . . . . . . . . . . . . . . 13 Impact . | . . . . . . . . . . . . . . . Kinetic 13 | . . . . . . . . . . . . . . 13 Secondary . | . . . . . . . . . . . . . . . Self-Inflicted Damage 644 | . . 102 . . . . 48 2 . 86 145 210 51 . Shots 14 | . . 4 . . . . 1 . . 2 3 3 1 . Rammed 2 | . . . . . . . . 1 . . . . . 1 Targets Rammed 2 | . . . . . . . . 1 . . . . . 1 Kicked . | . . . . . . . . . . . . . . . Crushed . | . . . . . . . . . . . . . . . Highest Temperature 852 | . 27 25 . 40 225 71 852 . . 11 45 . 3 372 Average Temperature 93 | . 7 13 . 12 49 18 264 . . 7 20 . 2 100 Received Heat Transfer 2774 | . 66 27 . . 558 108 828 . . 138 144 . . 905 Effects 10 | . . . . . . . 9 . . . . . . 1 Shutdowns 2 | . . . . . . . 1 . . . . . . 1 Energy Bleed 4 | . . . . . . . 4 . . . . . . . Interference 3 | . . . . . . . 3 . . . . . . . Matter Decay 1 | . . . . . . . 1 . . . . . . . Siege Activations . | . . . . . . . . . . . . . . . Martial Activations . | . . . . . . . . . . . . . . . Shielding Activations . | . . . . . . . . . . . . . . . Robots Disrupted . | . . . . . . . . . . . . . . . Combat Hostiles . | . . . . . . . . . . . . . . . Robots Corrupted . | . . . . . . . . . . . . . . . Combat Hostiles . | . . . . . . . . . . . . . . . Parts Fried . | . . . . . . . . . . . . . . . Impact Corruptions . | . . . . . . . . . . . . . . . Robots Melted 1 | . . . . . . . . . . . . . . 1 Combat Hostiles 1 | . . . . . . . . . . . . . . 1 Parts Melted 2 | . . . . . . . . . . . . . . 2 Heat Transferred 1479 | . . . . 37 385 . . . . . . . . 1057 Parts Sabotaged . | . . . . . . . . . . . . . . . Parts Stolen 2 | . . . . . . . . 2 . . . . . . Parts Stripped . | . . . . . . . . . . . . . . . Power Chain Reactions . | . . . . . . . . . . . . . . . Alert | -11 -10 -10 -10 -9 -8 -7 -7 -7 -7 -6 -6 -5 -4 -4 ------- Run | Yrd Mat Min Exi Min Mat Fac Low Low Zio Pro Fac Fac Fac Ext Maximum Alert Level 2 | . . . . . 2 1 . . . . . . . 1 Low Security (%) 79 | 100 100 100 . 100 59 61 . . . . 100 100 100 54 Level 1 19 | . . . . . 34 38 . . . . . . . 45 Level 2 1 | . . . . . 6 . . . . . . . . . Level 3 . | . . . . . . . . . . . . . . . Level 4 . | . . . . . . . . . . . . . . . Level 5 . | . . . . . . . . . . . . . . . High Security . | . . . . . . . . . . . . . . . Max Security . | . . . . . . . . . . . . . . . Peak Influence 607 | 5 87 178 . 106 607 293 . . . . 143 122 53 344 Initial 273 | . . 23 . . 19 273 . . . . 85 58 53 . Average 113 | . 42 129 . 38 188 192 . . . . 96 58 13 129 Influence Increases 3401 | 15 185 329 . 121 1012 197 70 . . 400 174 131 46 721 Destroy 0b10 Robot/C 1780 | . 120 160 . 60 620 100 60 . . 260 40 . . 360 Destroy 0b10 Robot/NC 110 | 15 25 . . 5 35 15 . . . . 5 5 . 5 Destroy Leader 318 | . 36 30 . 10 148 20 10 . . 20 . 2 . 42 Allied During Kill 207 | . . . . . . . . . . . . . . 207 Successful Hack 50 | . 4 . . . 5 7 . . . . 12 . 8 14 Disable Machine 180 | . . 15 . 30 75 15 . . . . 15 30 . . Destroy Structure 426 | . . 79 . 16 114 40 . . . . 27 94 38 18 Partial Spotted 15 | . . . . . . . . . . . 15 . . . Lose Combat Pursuer 315 | . . 45 . . 15 . . . . 120 60 . . 75 Influence Decreases 3199 | 15 124 278 112 70 462 648 220 . . 264 191 141 155 519 Entered New Map 734 | . . 38 112 . 32 328 56 . . . 51 61 56 . Time Decay 1801 | 15 124 230 . 70 340 170 130 . . 204 120 70 91 237 Lost Part 362 | . . 10 . . 90 . 34 . . 60 20 10 8 130 Lost Ally 152 | . . . . . . . . . . . . . . 152 Purge Threat 150 | . . . . . . 150 . . . . . . . . Squads Dispatched 20 | . 1 . . . 5 3 . . . 1 4 . 1 5 Investigation 13 | . 1 . . . 3 2 . . . . 2 . . 5 Extermination 1 | . . . . . . 1 . . . . . . . . Reinforcement 5 | . . . . . 2 . . . . . 2 . 1 . Assault 1 | . . . . . . . . . . 1 . . . . Garrison . | . . . . . . . . . . . . . . . Intercept . | . . . . . . . . . . . . . . . Searches Triggered . | . . . . . . . . . . . . . . . Construction Impeded 2 | . . . . . 1 . . . . . . . 1 . Haulers Reinforced 1 | . . . . . . . . . . . 1 . . . Active Scanning Responses . | . . . . . . . . . . . . . . . Cargo Convoy Interrupts . | . . . . . . . . . . . . . . . Stealth | -11 -10 -10 -10 -9 -8 -7 -7 -7 -7 -6 -6 -5 -4 -4 --------- Run | Yrd Mat Min Exi Min Mat Fac Low Low Zio Pro Fac Fac Fac Ext Distress Signals 4 | . 3 . . . . . . . . . . . . 1 Communications Jammed . | . . . . . . . . . . . . . . . Distress Signals . | . . . . . . . . . . . . . . . Times Spotted 147 | . 17 13 . 3 36 6 5 3 . 22 9 . 3 30 Peak Tracking Total 10 | . 5 3 . 3 5 3 3 2 . 10 5 . 2 7 Tactical Retreats 13 | . . 2 . . 1 . . . . 5 2 . . 3 Traps | -11 -10 -10 -10 -9 -8 -7 -7 -7 -7 -6 -6 -5 -4 -4 ------- Run | Yrd Mat Min Exi Min Mat Fac Low Low Zio Pro Fac Fac Fac Ext Traps Triggered 2 | . . . . . . 1 . . . . 1 . . . Indirectly . | . . . . . . . . . . . . . . . Trap Hack Attempts . | . . . . . . . . . . . . . . . Triggered . | . . . . . . . . . . . . . . . Disarmed . | . . . . . . . . . . . . . . . Reprogrammed . | . . . . . . . . . . . . . . . Reused . | . . . . . . . . . . . . . . . Traps Extracted . | . . . . . . . . . . . . . . . Installed . | . . . . . . . . . . . . . . . Triggered . | . . . . . . . . . . . . . . . Machines | -11 -10 -10 -10 -9 -8 -7 -7 -7 -7 -6 -6 -5 -4 -4 ---------- Run | Yrd Mat Min Exi Min Mat Fac Low Low Zio Pro Fac Fac Fac Ext Machines Disabled 14 | . . 1 . 2 5 1 1 . . 1 1 2 . . Max in Single Turn 2 | . . 1 . 2 2 1 1 . . 1 1 2 . . Garrison Access 1 | . . . . . . . . . . . . 1 . . Machines Repaired . | . . . . . . . . . . . . . . . Machines Dismantled . | . . . . . . . . . . . . . . . Machines Sabotaged . | . . . . . . . . . . . . . . . Overloaded Fab Kills . | . . . . . . . . . . . . . . . Hacking | -11 -10 -10 -10 -9 -8 -7 -7 -7 -7 -6 -6 -5 -4 -4 --------- Run | Yrd Mat Min Exi Min Mat Fac Low Low Zio Pro Fac Fac Fac Ext Machines Accessed 30 | . 2 2 1 . 6 3 . . . . 4 2 2 8 Terminals 17 | . 1 1 . . 2 3 . . . . 2 . . 8 Fabricators . | . . . . . . . . . . . . . . . Repair Stations 3 | . . . . . 2 . . . . . 1 . . . Recycling Units 4 | . 1 . . . . . . . . . 1 1 1 . Scanalyzers 3 | . . . . . 2 . . . . . . . 1 . Garrison Access 1 | . . . . . . . . . . . . 1 . . Total Hacks 73 | . 7 4 1 . 14 7 . . . . 10 3 7 20 Successful 33 | . 6 3 1 . 9 3 . . . . 2 1 4 4 Failed 39 | . 1 1 . . 4 4 . . . . 8 2 3 16 Catastrophic 12 | . . . . . 1 3 . . . . 4 . . 4 Database Lockouts 1 | . . . . . 1 . . . . . . . . . Manual 9 | . . 2 1 . 2 4 . . . . . . . . Terminals 42 | . 3 3 . . 4 7 . . . . 5 . . 20 Fabricators . | . . . . . . . . . . . . . . . Repair Stations 7 | . . . . . 4 . . . . . 3 . . . Recycling Units 10 | . 4 . . . . . . . . . 2 2 2 . Scanalyzers 11 | . . . . . 6 . . . . . . . 5 . Garrison Access 1 | . . . . . . . . . . . . 1 . . Terminal Hacks 15 | . 3 2 1 . 1 2 . . . . 2 . . 4 Record 1 | . . . . . . . . . . . 1 . . . Prototype ID Bank 2 | . 1 . . . 1 . . . . . . . . . Open Door 5 | . . 1 . . . . . . . . . . . 4 Branch Access Points 1 | . . . . . . 1 . . . . . . . . Unreport Threat 1 | . . . . . . 1 . . . . . . . . Locate Traps 1 | . 1 . . . . . . . . . . . . . Dispatch Records 1 | . 1 . . . . . . . . . . . . . Zone Layout 2 | . . 1 . . . . . . . . 1 . . . Proto ID Catalog 1 | . . . 1 . . . . . . . . . . . Fabricator Hacks . | . . . . . . . . . . . . . . . Repair Station Hacks 4 | . . . . . 4 . . . . . . . . . Scan Component 2 | . . . . . 2 . . . . . . . . . Repair 2 | . . . . . 2 . . . . . . . . . Recycling Unit Hacks 5 | . 3 . . . . . . . . . . . 2 . Process 1 | . . . . . . . . . . . . . 1 . Report Inventory 2 | . 2 . . . . . . . . . . . . . Retrieve Components 2 | . 1 . . . . . . . . . . . 1 . Scanalyzer 6 | . . . . . 4 . . . . . . . 2 . Insert Component 1 | . . . . . 1 . . . . . . . . . Analyze 1 | . . . . . 1 . . . . . . . . . Retrieve Study 4 | . . . . . 2 . . . . . . . 2 . Garrison Access Hacks 1 | . . . . . . . . . . . . 1 . . Seal Access 1 | . . . . . . . . . . . . 1 . . Unauthorized Hacks 2 | . . 1 . . . 1 . . . . . . . . Terminals 2 | . . 1 . . . 1 . . . . . . . . Botnet 1 | . . 1 . . . . . . . . . . . . Operators 1 | . . . . . . 1 . . . . . . . . Fabricators . | . . . . . . . . . . . . . . . Repair Stations . | . . . . . . . . . . . . . . . Recycling Units . | . . . . . . . . . . . . . . . Scanalyzers . | . . . . . . . . . . . . . . . Garrison Access . | . . . . . . . . . . . . . . . Data Cores Recovered . | . . . . . . . . . . . . . . . Used . | . . . . . . . . . . . . . . . Hacking Detections 21 | . 2 1 . . 4 3 . . . . 4 1 1 5 Full Trace Events 13 | . 1 . . . 3 2 . . . . 2 . . 5 Feedback Events . | . . . . . . . . . . . . . . . Feedback Blocked . | . . . . . . . . . . . . . . . Robot Schematics Acquired 3 | . . . . . . . . . 3 . . . . . Robots Built . | . . . . . . . . . . . . . . . Authchips . | . . . . . . . . . . . . . . . Time . | . . . . . . . . . . . . . . . Total Robot Build Rating . | . . . . . . . . . . . . . . . Part Schematics Acquired 15 | . . . . . . . . . 15 . . . . . Parts Built . | . . . . . . . . . . . . . . . Authchips . | . . . . . . . . . . . . . . . Time . | . . . . . . . . . . . . . . . Total Part Build Rating . | . . . . . . . . . . . . . . . Part Studies Acquired 4 | . . . . . 2 . . . . . . . 2 . Parts Repaired 2 | . . . . . 2 . . . . . . . . . Time 58 | . . . . . 58 . . . . . . . . . Parts Recycled . | . . . . . . . . . . . . . . . Recycled Matter . | . . . . . . . . . . . . . . . Retrieved Matter . | . . . . . . . . . . . . . . . Retrieved Components 4 | . 1 . . . . . . . . . . . 3 . Parts Scanalyzed 1 | . . . . . 1 . . . . . . . . . Part Schematics Acquired . | . . . . . . . . . . . . . . . Parts Damaged . | . . . . . . . . . . . . . . . Bothacking | -11 -10 -10 -10 -9 -8 -7 -7 -7 -7 -6 -6 -5 -4 -4 ------------ Run | Yrd Mat Min Exi Min Mat Fac Low Low Zio Pro Fac Fac Fac Ext Used RIF Installer . | . . . . . . . . . . . . . . . Robots Hacked 1 | . . . . . . . . . . . . 1 . . Non-combat 1 | . . . . . . . . . . . . 1 . . Combat . | . . . . . . . . . . . . . . . Robot Hacks Applied 3 | . . . . . . . . . . . . 3 . . no_distress 1 | . . . . . . . . . . . . 1 . . find_fabricator 1 | . . . . . . . . . . . . 1 . . find_dsf 1 | . . . . . . . . . . . . 1 . . Relay Couplers Released 1 | . . . . . . . . . . . . 1 . . Machine Destruction 1 | . . . . . . . . . . . . 1 . . Fabnet Peak Effective % . | . . . . . . . . . . . . . . . Robots Rewired 3 | . . . . . . . . . . . . . . 3 Allies Hacked . | . . . . . . . . . . . . . . . Hacks Repelled . | . . . . . . . . . . . . . . . Allies | -11 -10 -10 -10 -9 -8 -7 -7 -7 -7 -6 -6 -5 -4 -4 -------- Run | Yrd Mat Min Exi Min Mat Fac Low Low Zio Pro Fac Fac Fac Ext Total Allies 9 | . . . . . . . . . . . . . . 9 Largest Group 7 | . . . . . . . . . . . . . . 7 Highest-Rated Group 303 | . . . . . . . . . . . . . . 303 Highest-Rated Ally 51 | . . . . . . . . . . . . . . 51 Total Orders . | . . . . . . . . . . . . . . . Ally Attacks 100 | . . . . . . . . . . . . . . 100 Total Damage 2989 | . . . . . . . . . . . . . . 2989 Kills 14 | . . . . . . . . . . . . . . 14 Allies Corrupted . | . . . . . . . . . . . . . . . Allies Melted . | . . . . . . . . . . . . . . . Intel | -11 -10 -10 -10 -9 -8 -7 -7 -7 -7 -6 -6 -5 -4 -4 ------- Run | Yrd Mat Min Exi Min Mat Fac Low Low Zio Pro Fac Fac Fac Ext Active Infowar (turns) 1442 | 41 321 464 116 . . . . 63 421 11 3 . . 2 Optics 2 | . . . . . . . . . . . . . . 2 Seismic 1437 | 41 321 464 116 . . . . 63 421 11 . . . . ECM 3 | . . . . . . . . . . . 3 . . . Robot Analysis Total . | . . . . . . . . . . . . . . . Derelict Logs Recovered 4 | . . 1 . 1 . . . 1 . 1 . . . . Drone Launches . | . . . . . . . . . . . . . . . Drone Recoveries . | . . . . . . . . . . . . . . . Exploration | -11 -10 -10 -10 -9 -8 -7 -7 -7 -7 -6 -6 -5 -4 -4 ------------- Run | Yrd Mat Min Exi Min Mat Fac Low Low Zio Pro Fac Fac Fac Ext Turns Passed 5690 | 163 321 493 248 265 814 357 356 257 421 454 255 148 352 786 Spaces Moved 5248 | 80 132 465 247 188 503 265 334 334 739 646 320 167 310 518 Core 2035 | 1 . . . . . . 114 310 739 559 68 . . 244 Treads 611 | 68 79 . . . 81 . . . . . . . 126 257 Legs 95 | . . . . . 88 . . . . . . . . 7 Wheels 1794 | 11 53 465 247 188 334 265 220 1 . . . . . 10 Hover 470 | . . . . . . . . . . . 119 167 184 . Flight 243 | . . . . . . . . 23 . 87 133 . . . Fastest Speed 32 | 50 95 80 95 125 85 100 50 50 50 32 32 56 52 50 Average Speed 86 | 147 133 92 99 125 110 115 92 62 50 59 58 69 102 111 Slowest Speed 400 | 160 160 95 125 125 260 130 115 100 50 400 250 150 170 185 Overloaded Moves . | . . . . . . . . . . . . . . . Propulsion Burnouts . | . . . . . . . . . . . . . . . Robots Hopped 3 | . . . . . . . . 1 . 1 1 . . . Potential Cave-ins . | . . . . . . . . . . . . . . . Cave-ins Triggered . | . . . . . . . . . . . . . . . Time Travels 1 | . . . 1 . . . . . . . . . . . Exploration Rate (%) 41 | 5 33 95 62 33 45 9 55 45 79 91 9 4 10 53 Regions Visited 14 Branch Regions 8 Pre-discovered Areas 3 | . . . . . . . . . 3 . . . . . Known Exits Taken 3 | . . . . . 1 1 . . . . . . 1 . Unknown Exits Taken 11 | 1 1 1 1 1 . . 1 1 1 1 1 1 . . Scrap Searched 13 | . . 3 . . . . 1 2 5 2 . . . . Spaces Dug 41 | . . . . . . . 20 . . . 12 9 . . Terrain Destroyed 540 | . . 91 . 16 116 55 56 . . 102 30 52 18 4 Melee . | . . . . . . . . . . . . . . . Projectile 53 | . . . . . 46 3 . . . . . . . 4 AOE 487 | . . 91 . 16 70 52 56 . . 102 30 52 18 . Terrain Rammed . | . . . . . . . . . . . . . . . Walls Destroyed . | . . . . . . . . . . . . . . . Machines Disabled . | . . . . . . . . . . . . . . . Actions | -11 -10 -10 -10 -9 -8 -7 -7 -7 -7 -6 -6 -5 -4 -4 --------- Run | Yrd Mat Min Exi Min Mat Fac Low Low Zio Pro Fac Fac Fac Ext Total 6055 | 108 219 500 251 209 698 291 360 372 792 695 379 188 340 653 Wait 251 | . 37 2 . 7 80 2 . 24 40 10 34 . 10 5 Move 5228 | 79 131 464 246 187 502 264 333 331 738 643 317 166 309 518 Hop 3 | . . . . . . . . 1 . 1 1 . . . Pick Up 69 | 10 4 3 1 2 21 3 3 3 8 2 1 2 3 3 Fast Attach 70 | 6 . 1 1 . 12 . 1 4 . 3 10 7 8 17 Attach 45 | 1 . . . 1 7 4 7 3 . 10 5 . 2 5 Detach 15 | . . . . . 1 1 . 1 . 8 3 1 . . Swap 48 | 2 7 10 . 2 15 1 1 . . . . . 3 7 Drop 66 | 1 7 5 3 2 23 . 3 . 6 1 4 2 4 5 Fire 191 | 9 33 15 . 8 37 16 12 4 . 17 4 10 1 25 Melee 8 | . . . . . . . . . . . . . . 8 Ram 1 | . . . . . . . . 1 . . . . . . Kick . | . . . . . . . . . . . . . . . Crush 1 | . . . . . . . . . . . . . . 1 Escape Stasis . | . . . . . . . . . . . . . . . Rewire 59 | . . . . . . . . . . . . . . 59 Trap . | . . . . . . . . . . . . . . . Miscellaneous . | . . . . . . . . . . . . . . . Route ------- -11/Scrapyard -10/Materials -10/Mines (discovered 4 exits: [*Mat x2] / *Exi / [*Sub]) -10/Exiles -9/Mines -8/Materials (discovered 3 exits: *Fac x3) -7/Factory (discovered 3 exits: *Sto / *Low x2) -7/Lower Caves -7/Lower Caves -7/Zion -6/Proximity Caves -6/Factory -5/Factory -4/Factory -4/Extension History --------- Turn | Location | Event 18 | -11/Scrapyard | Discovered new exit (range 15) 164 | -11/Scrapyard | Entered Materials 319 | -10/Materials | Build established: Mutant 367 | -10/Materials | Discovered new exit (range 16) 485 | -10/Materials | Entered Mines 561 | -10/Mines | Discovered new exit (range 14) 669 | -10/Mines | Found the Drone Emporium 692 | -10/Mines | Learned location of 1 exit from Materials 722 | -10/Mines | Discovered new exit (range 6) 739 | -10/Mines | Discovered new exit (range 10) 763 | -10/Mines | Received a Rocket Launcher from a helpful Derelict 877 | -10/Mines | Deemed a non-threat by the Exiles lab entrance 878 | -10/Mines | Discovered new exit (range 5) 978 | -10/Mines | Entered Exiles 1004 | -10/Exiles | Met 8R-AWN 1016 | -10/Exiles | Met EX-HEX 1050 | -10/Exiles | Met EX-BIN 1063 | -10/Exiles | Aligned with FarCom system 1064 | -10/Exiles | Given EX-Vault access code 1091 | -10/Exiles | Opened EX-Vault 1096 | -10/Exiles | Found Chronowheel 1096 | -10/Exiles | Activated Chronowheel 1096 | -10/Exiles | Spacetime reconverged on an earlier point 1098 | -10/Exiles | Found AWS/Gauss 1119 | -10/Exiles | Warned to stay clear of 0b10 Research branches 1132 | -10/Exiles | Exiles lab attacked by MAIN.C 1216 | -10/Exiles | Discovered new exit (range 10) 1226 | -10/Exiles | Left Exiles lab with AWS/Gauss 1226 | -10/Exiles | Entered Mines 1277 | -9/Mines | Met a Derelict bent on vengeance 1316 | -9/Mines | Learned Materials emergency access door positions 1471 | -9/Mines | Discovered new exit (range 10) 1491 | -9/Mines | Entered Materials 1491 | -8/Materials | Evolved 4 slots: Propulsion x2, Utility x2 1492 | -8/Materials | Identified exit to Factory 1533 | -8/Materials | Repaired Lgt. Armor Plating 1562 | -8/Materials | Central database locked down 1693 | -8/Materials | Repaired Hvy. Assault Rifle 1784 | -8/Materials | Discovered exit to Factory (range 10) 1929 | -8/Materials | Lost 5 parts (1p3n1u) 2143 | -8/Materials | Discovered exit to Factory (range 12) 2305 | -8/Materials | Entered Factory 2305 | -7/Factory | Evolved 2 slots: Utility x1, Weapon x1 2306 | -7/Factory | Destroyed 13 combat bots 2376 | -7/Factory | Discovered new exit (range 9) 2378 | -7/Factory | Identified exit to Storage 2378 | -7/Factory | Identified exit to Lower Caves 2391 | -7/Factory | AWS/Gauss suddenly broke down 2662 | -7/Factory | Entered Lower Caves 2858 | -7/Lower Caves | Spotted B-75 Beast 2890 | -7/Lower Caves | Lost 3 parts (2u1w) 2961 | -7/Lower Caves | Released all parts (7) 2985 | -7/Lower Caves | Lost 8 parts (1n6u1w) 3004 | -7/Lower Caves | Attracted the attention of an 0b10 checkpoint 3015 | -7/Lower Caves | Discovered new exit (range 7) 3018 | -7/Lower Caves | Entered another Lower Caves area 3271 | -7/Lower Caves | Discovered new exit (range 8) 3275 | -7/Lower Caves | Entered Zion 3311 | -7/Zion | System corruption cleaned by Quarantine Array 3324 | -7/Zion | Learned location of Data Miner (-6) 3400 | -7/Zion | Given A8's code to call for help 3402 | -7/Zion | Learned Factory emergency access door positions 3416 | -7/Zion | Learned location of Recycling (-7) 3588 | -7/Zion | Rebuked by Imprinter 3690 | -7/Zion | Discovered new exit (range 11) 3696 | -7/Zion | Entered Proximity Caves 3803 | -6/Proximity Caves | Spotted B-75 Beast 3815 | -6/Proximity Caves | Core integrity fell below 50% 3922 | -6/Proximity Caves | Attracted the attention of an 0b10 outpost 3939 | -6/Proximity Caves | Core integrity fell below 20% 3963 | -6/Proximity Caves | Lost 3 parts (1u2w) 4128 | -6/Proximity Caves | Attracted the attention of an 0b10 checkpoint 4147 | -6/Proximity Caves | Discovered new exit (range 3) 4149 | -6/Proximity Caves | Learned Factory security intel 4150 | -6/Proximity Caves | Entered Factory 4150 | -6/Factory | Evolved 2 slots: Utility x2 4387 | -6/Factory | Discovered new exit (range 10) 4405 | -6/Factory | Entered another Factory area 4405 | -5/Factory | Evolved 2 slots: Power x1, Propulsion x1 4551 | -5/Factory | Discovered new exit (range 4) 4553 | -5/Factory | Entered another Factory area 4553 | -4/Factory | Evolved 2 slots: Utility x2 4554 | -4/Factory | Identified exit to Extension 4905 | -4/Factory | Lost 3 parts (2u1w) 4905 | -4/Factory | Entered Extension 4969 | -4/Extension | Rescued a captive Derelict 4970 | -4/Extension | Rescued a captive Derelict 5148 | -4/Extension | Rescued a captive Derelict 5194 | -4/Extension | Rescued a captive Derelict 5228 | -4/Extension | Rescued a captive Derelict 5230 | -4/Extension | Rescued a captive Derelict 5374 | -4/Extension | Lost 3 allies 5418 | -4/Extension | Spotted B-86 Titan 5427 | -4/Extension | Spotted B-86 Titan 5443 | -4/Extension | Allies destroyed B-86 Titan 5452 | -4/Extension | Released all parts (10) 5475 | -4/Extension | Lost 8 parts (2p3n2u1w) 5549 | -4/Extension | Released all parts (9) 5576 | -4/Extension | Core integrity fell below 50% 5576 | -4/Extension | Released all parts (2) 5579 | -4/Extension | Lost 4 parts (3u1w) 5681 | -4/Extension | Core integrity fell below 20% 5691 | -4/Extension | Destroyed by G-67 Veteran with Field Laser Last Messages --------------- 05571_ Slug penetrates Wall. 05571_ Penetrated by Slug. 05571_ Slug penetrates Wall. 05571_ Penetrated by Slug. 05576_ Released Phasing Sabre. 05576_ Released Flexi-carbon Leg. 05578_ Slug penetrates Wall. 05612_ Connecting with Door Terminal... 05612_ ALERT: Suspicious activity at Terminal E006. Dispatching Investigation squad. 05637_ Jacked A-15 Conveyor... >>find_fabricator No accessible Fabricator found in memory. 05667_ Slug penetrates R-10 Processor. 05672_ Acquired Imp. Treads. 05673_ Acquired 15 matter. 05677_ Penetrated by Slug. 05680_ Remote Datajack destroyed. 05680_ Knocked back. 05680_ Penetrated by Slug. Map ----- +----------------------------------------------------+ | ?????????????????????????????????????????????????? | | ?????????????????????????????????????????????????? | | ?????????????????????????????????????????????????? | | ?????????????????????????????????????????????????? | | ?????????????????????????????????????????????????? | | ?????????????????????????????????????????????????? | | ?????????????????????????????????????????????????? | | ?????????????????????????????????????????????????? | | ?????????????????????????????????????????????????? | | ?????????????????????????????????????????????????? | | ?????????????????????????????????????????????????? | | ?????????????????????????????????????????????????? | | ?????????????????????????????????????????????????? | | ?????????????????????????????????????????????????? | | ?????????????????????????????????????????????????? | | ?????????????????????????????????????????????????? | | ?????????????????????????????????????????????????? | | ?????????????????????????????????????????????????? | | ?????????????????????????????????????????????????? | | ##???????????????????????????????????????????????? | | "#???????????????????????????????????????????????? | | #???????????????????????????????????????????????? | | #???????????????????????????????????????????????? | | #???????????????????????????????????????????????? | | ###################################?????????????? | | @ ????????? | | ????????? | | % u g ????????? | | % R R ?????????? | | g g ?????????? | | ######################/###############??????????? | | #????????????????????#l?????????????????????????? | | #????????????????????# ????l?l??????????????????? | | #????????????????????##?????????????????????????? | | #???????????????????????????????????????????????? | | ##???????????????????????????????????????????????? | | ?????????????????????????????????????????????????? | | ?????????????????????????????????????????????????? | | | | | | | | | | | | | | | | | | | | | | | | | +----------------------------------------------------+ Best States ------------- Heat Dissipation 100 Coolant Potential 50 Energy Generation 37 Energy Capacity 385 Matter Stores 300 Matter Capacity 300 Sight Range 16 Terrain Scan Density 10 Power Amplification 30 Armor Coverage 600 Resistance: KI 20 Resistance: EX 25 Core Shielding 30 Power Shielding 66 Propulsion Shielding 33 Weapon Shielding 66 Evasion (%) 63 Melee Accuracy 24 Recoil Reduction 5 Matter Filtering 30 Salvage Targeting 1 Offensive Hacking 12 Defensive Hacking 14 Item Schematics ----------------- Med. Reactive Plating | -7/Zion | Archive Imp. Cryofiber Web | -7/Zion | Archive Med. Reflective Plating | -7/Zion | Archive Imp. Titanium Leg | -7/Zion | Archive Adv. Assault Cannon | -7/Zion | Archive IFF Parser | -7/Zion | Archive Imp. System Restoration Module | -7/Zion | Archive Imp. Shock Absorption System | -7/Zion | Archive Hvy. Flak Cannon | -7/Zion | Archive Xenon Bombardment Thruster | -7/Zion | Archive Angular Momentum Engine | -7/Zion | Archive Imp. Field Recycling Unit | -7/Zion | Archive Great Axe | -7/Zion | Archive Mass Driver | -7/Zion | Archive Force Field | -7/Zion | Archive Robot Schematics ------------------ K-01 Serf | -7/Zion | Archive S-27 Virus | -7/Zion | Archive L-41 Fighter | -7/Zion | Archive Fabricated ------------ Nothing Repaired ---------- Lgt. Armor Plating | 64% | -8/Materials Hvy. Assault Rifle | 35% | -8/Materials Studied --------- Wheel | -8/Materials | Hacked Rocket Launcher | -8/Materials | Hacked Adv. Medium Treads | -4/Factory | Hacked Imp. Fusion Compressor | -4/Factory | Hacked Alien Tech Used ----------------- None Achievements -------------- None Challenges ------------ None Game ------ Seed AblativePhaseProjector Manual? 0 Play Time 01:10:25 Cumulative 62.8 hours Start 2026.01.17 @ 01:00:11 End 2026.01.17 @ 02:27:35 Sessions 1 Manual Loads 0 Difficulty Rogue Special Mode None Game No. 68 Rogue 68 Adventurer 0 Explorer 0 Win Type - Total 1 Types 1/0/0/0/0/0/0/0/0/0 Lore% 46 Gallery% 44 Achievement% 33 Wizard Run 0 Options --------- Layout 0 ASCII 0 Keyboard 0 Movement Arrows Keybinds 1 Fullscreen 1 Font 18/X11 Map View 76x50 Zoom Use 0% Tactical HUD 1 Map Filters NONE Filters NONE Steam 1 RUN: 7073cdcb-099d-4fee-9eaf-fcf56d978b56